Cogmind - Beta 16.1 @@@ ROGUE MODE // 2026.06.20 @ 20:12:03 Player: JuustuToug Result: Escaped! Performance ------------- Evolutions (9) 4500 Regions Visited (22) 4400 Robots Destroyed (300) 1500 Value Destroyed (14762) 14762 Prototype IDs (30) 600 Alien Tech Used (0) 0 Bonus (10745) 10745 TOTAL SCORE: 36507 Bonus ------- High Alert Combat Kills 990 Follower Combat Kills 1681 Network Hubs Disabled 200 Met Imprinter 300 Destroyed Z-Imprinter 1000 Triggered Deep Caves Wall 500 Exposed GOLEM Chamber 500 Built Enhanced Grunts 300 A7 Reached Mainframe 300 Met R17 at Cetus 500 Met R17 at Research 2000 Win 3000 Friendly Fire -526 Cogmind --------- Core Integrity 105/1600 Matter 290/300 Energy 98/100 System Corruption 36% Temperature Cool (0) Movement Core (50) Location To Epsilon Eridani Parts ------- > --- POWER (3) -------- (None) > --- PROPULSION (6) --- Enhanced Armored Leg Enhanced Armored Leg Biometal Leg Assembled Alloy Leg > --- UTILITY (13) ----- Enhanced Optical Array Advanced Signal Interpreter > --- WEAPON (3) ------- (None) > --- INVENTORY (5) ---- GOLEM Unit Gamma Bomb Array Peak State ------------ > --- POWER ------------ Assembled Flux Generator Light Quantum Reactor > --- PROPULSION ------- Advanced Myomer Leg Biometal Leg Assembled Alloy Leg Assembled Alloy Leg Centrium Leg Centrium Leg > --- UTILITY ---------- Assembled Nanovents High-capacity Storage Unit Assembled Biocell Array Enhanced Optical Array Advanced Sensor Array Advanced Signal Interpreter Long-range Terrain Scanner Assembled Combat Suite Experimental Transmission Jammer Assembled Alloy Armor Graphene Brace GOLEM Unit > --- WEAPON ----------- Assembled Focal Cannon Assembled Focal Cannon Assembled Focal Cannon > --- INVENTORY -------- Light Quantum Reactor Light Quantum Reactor Enhanced Armored Leg Enhanced Armored Leg Enhanced Armored Leg Biometal Leg Biometal Leg Centrium Leg Experimental Coolant Injector Advanced Sensor Array Experimental ECM Suite Advanced Hardlight Generator Advanced Hardlight Generator GOLEM Unit GOLEM Unit Gamma Bomb Array Fusion Bomb Launcher [Rating: 211] Favorites ----------- Power Assembled Flux Generator Engine Improved Deuterium Engine Power Core Light Nuclear Core Reactor Assembled Flux Generator Propulsion Assembled Alloy Leg Treads Improved Treads Leg Assembled Alloy Leg Wheel Wheel Utility High-capacity Storage Unit Device GOLEM Unit Storage High-capacity Storage Unit Processor Experimental Optical Array Hackware Hacking Suite Protection Assembled Alloy Armor Weapon Assembled Focal Cannon Energy Gun Heavy Particle Gun Energy Cannon Assembled Focal Cannon Ballistic Gun Light Assault Rifle Launcher Heavy Rocket Launcher Special Weapon Plasma Cutter Impact Weapon Maul Piercing Weapon CR-A16's Pointy Stick Build | -11 -10 -10 -10 -9 -8 -7 -7 -7 -7 -7 -6 -6 -6 -6 -6 -6 -5 -4 -4 -3 -2 -1 ------- Run | Yrd Mat Min Exi Min Mat Fac Low Low Zio Dee Pro Fac Ext Cet Arc Hub Fac Fac Arm Res Res Acc Slots Evolved 18 | . . . . . 4 2 . . . . . 2 . . . . 2 2 . 2 2 2 Power 2 | . . . . . . 1 . . . . . . . . . . . 1 . . . . Propulsion 4 | . . . . . 2 . . . . . . 1 . . . . . 1 . . . . Utility 11 | . . . . . 2 1 . . . . . 1 . . . . 2 . . 2 2 1 Weapon 1 | . . . . . . . . . . . . . . . . . . . . . . 1 Parts Attached 183 | 7 3 10 . . 33 16 . 3 7 20 . 1 4 . . . 10 7 17 17 11 17 Power 20 | 1 1 1 . . 3 3 . . . 3 . . . . . . . . 3 1 1 3 Engine 7 | 1 . 1 . . 2 2 . . . 1 . . . . . . . . . . . . Core 6 | . 1 . . . 1 1 . . . 1 . . . . . . . . 2 . . . Reactor 7 | . . . . . . . . . . 1 . . . . . . . . 1 1 1 3 Propulsion 66 | 2 . 6 . . 12 5 . 1 . 8 . 1 2 . . . 4 3 7 2 3 10 Treads 20 | 2 . 1 . . 5 5 . 1 . 6 . . . . . . . . . . . . Leg 43 | . . 3 . . 7 . . . . 2 . . 2 . . . 4 3 7 2 3 10 Wheel 3 | . . 2 . . . . . . . . . 1 . . . . . . . . . . Hover . | . . . . . . . . . . . . . . . . . . . . . . . Flight . | . . . . . . . . . . . . . . . . . . . . . . . Utility 67 | 2 1 1 . . 7 4 . . 6 5 . . 2 . . . 5 4 7 14 5 4 Device 39 | 1 . 1 . . 4 1 . . 1 1 . . 2 . . . 3 2 6 9 4 4 Storage 3 | 1 1 . . . . . . . . . . . . . . . . . . . 1 . Processor 13 | . . . . . . . . . 5 . . . . . . . 2 1 1 4 . . Hackware 2 | . . . . . . 1 . . . . . . . . . . . . . 1 . . Protection 10 | . . . . . 3 2 . . . 4 . . . . . . . 1 . . . . Artifact . | . . . . . . . . . . . . . . . . . . . . . . . Weapon 30 | 2 1 2 . . 11 4 . 2 1 4 . . . . . . 1 . . . 2 . Energy Gun 5 | . . . . . 4 1 . . . . . . . . . . . . . . . . Energy Cannon 10 | . . . . . 4 2 . 2 . 2 . . . . . . . . . . . . Ballistic Gun 6 | 2 . 2 . . 2 . . . . . . . . . . . . . . . . . Ballistic Cannon . | . . . . . . . . . . . . . . . . . . . . . . . Launcher 6 | . 1 . . . 1 . . . . 1 . . . . . . 1 . . . 2 . Special Weapon 1 | . . . . . . . . . 1 . . . . . . . . . . . . . Impact Weapon 1 | . . . . . . 1 . . . . . . . . . . . . . . . . Slashing Weapon . | . . . . . . . . . . . . . . . . . . . . . . . Piercing Weapon 1 | . . . . . . . . . . 1 . . . . . . . . . . . . Special Melee Weapon . | . . . . . . . . . . . . . . . . . . . . . . . Unidentified Prototypes 20 | . . . . . 3 . . . 6 4 . . . . . . . . 2 2 1 2 Parts Lost 87 | . . 6 . . 7 . . . 1 13 . . . . . 2 7 3 9 2 9 28 Power 13 | . . 1 . . 1 . . . . 3 . . . . . . . . 2 1 1 4 Propulsion 35 | . . 2 . . 4 . . . . 5 . . . . . . 6 2 2 1 2 11 Utility 30 | . . 1 . . 1 . . . 1 4 . . . . . 2 1 1 5 . 4 10 Weapon 9 | . . 2 . . 1 . . . . 1 . . . . . . . . . . 2 3 Highest Loss Streak 18 | . . 6 . . 2 . . . 1 4 . . . . . 1 3 1 4 1 6 18 To Critical Strikes 1 | . . . . . . . . . . . . . . . . . 1 . . . . . Average Backups 16 | . 12 16 18 18 19 19 20 20 19 17 14 14 15 16 16 16 14 15 16 17 16 15 Power 1 | . 2 1 2 2 1 . 1 1 1 2 2 2 2 2 2 2 2 1 . 1 1 1 Propulsion 4 | . 1 3 5 5 4 5 5 5 5 3 . . 3 4 4 4 3 3 5 5 5 5 Utility 6 | . 1 3 3 3 5 5 5 6 6 7 11 10 8 8 8 8 6 8 8 8 8 6 Weapon 4 | . 7 7 7 7 6 7 7 7 7 4 1 2 2 2 2 2 2 1 1 2 1 1 Tool/Special . | . . . . . . . . . . . . . . . . . . . . . . . Unused Backups 50 | . . . . . 17 8 . 1 1 1 . . 5 . . 1 . 1 3 4 1 7 Power 7 | . . . . . 2 . . . . . . . . . . . . 1 1 . . 3 Propulsion 15 | . . . . . 4 5 . . . . . . 3 . . . . . 1 2 . . Utility 15 | . . . . . 2 2 . . 1 1 . . 2 . . 1 . . . 2 . 4 Weapon 13 | . . . . . 9 1 . 1 . . . . . . . . . . 1 . 1 . Tool/Special . | . . . . . . . . . . . . . . . . . . . . . . . Average Slot Usage (%) 91 | . 100 96 100 100 94 99 100 100 98 91 84 83 86 86 86 86 86 86 86 87 90 85 Engine 5 | . 9 13 14 14 4 12 15 15 15 8 . . . . . . . . . . . . Core 1 | . 4 . . . 4 1 . . . 1 . . . . . . . . 3 . . . Reactor 3 | . . . . . . . . . . 2 7 6 6 6 6 6 4 7 6 8 7 7 Treads 10 | . 28 3 . . 12 30 30 30 30 24 . . . . . . . . . . . . Leg 17 | . . 18 28 28 21 . . . . 4 30 26 31 33 33 33 27 30 29 25 25 23 Device 15 | . 14 10 14 14 14 15 15 15 8 7 7 12 13 13 13 13 19 20 16 18 26 25 Storage 9 | . 14 14 14 14 9 7 7 7 7 8 15 13 13 13 13 13 11 10 9 9 8 7 Processor 4 | . . . . . . . . . 5 7 7 6 6 6 6 5 4 5 5 8 8 8 Protection 4 | . . . . . 7 7 7 7 14 10 . . . . . . 3 . 3 4 3 3 Energy Cannon 9 | . . . . . 10 13 14 14 13 10 14 13 13 13 13 13 10 9 9 9 7 10 Ballistic Gun 3 | . 27 27 28 28 6 . . . . . . . . . . . . . . . . . Peak Build Rating 211 | 7 11 11 9 9 38 46 46 47 53 111 111 120 124 124 124 126 144 142 154 171 193 211 Average Rating 93 | 5 8 8 9 9 30 41 44 45 50 64 110 113 119 123 123 124 129 133 143 160 179 189 On Entrance 80 | . 7 11 9 9 9 30 44 44 47 53 111 111 113 124 124 124 126 124 132 152 162 180 Avg Prop Armor Cover (%) 10 | . . 8 . . 19 . . . . . . 2 2 . . . . . . . 3 25 Naked Turns . | . . . . . . . . . . . . . . . . . . . . . . . Heaviest Build 169 | 12 49 49 46 46 71 89 89 91 95 112 112 113 113 113 113 114 120 131 139 138 143 169 Greatest Support 178 | 40 40 40 20 20 82 97 97 97 97 108 108 108 128 128 128 128 128 148 160 160 173 178 Greatest Overweight (x) 4 | . 1 2 2 2 4 . . . . 1 1 1 1 . . . 2 1 1 . 1 1 Average Overweight (x) . | . . 1 2 2 . . . . . . . 1 . . . . . . . . . . Largest Inventory Capacity 20 | 8 20 20 20 20 20 20 20 20 20 20 20 20 20 20 20 20 20 20 20 20 20 20 Average Capacity 19 | 7 19 20 20 20 20 20 20 20 20 20 20 20 20 20 20 20 20 20 20 20 20 18 Most Carried 20 | 1 18 18 19 19 20 20 20 20 20 20 20 20 20 20 20 20 20 20 20 20 20 20 Average Carried 18 | . 12 16 18 18 19 19 19 19 19 18 19 19 19 20 20 20 18 18 19 19 18 17 Final Capacity 20 | 8 20 20 20 20 20 20 20 20 20 20 20 20 20 20 20 20 20 20 20 20 20 5 Final Carried 20 | 1 18 18 18 19 20 20 20 20 20 20 20 20 20 20 20 20 20 17 19 20 18 3 Class Distribution -------------------- 36% | Mutant 33% | Golem 11% | Commander-Golem 10% | Scavenger-Mutant 8% | Infiltrator-Golem Dominant Class ---------------- Mutant | -10/Materials Scavenger-Mutant | -10/Mines Scavenger-Mutant | -10/Exiles Scavenger-Mutant | -9/Mines Mutant | -8/Materials Mutant | -7/Factory Mutant | -7/Lower Caves Mutant | -7/Lower Caves Mutant | -7/Zion Mutant | -7/Deep Caves Golem | -6/Proximity Caves Golem | -6/Factory Commander-Golem | -6/Extension Commander-Golem | -6/Cetus Commander-Golem | -6/Archives Commander-Golem | -6/Hub_04(d) Golem | -5/Factory Infiltrator-Golem | -4/Factory Golem | -4/Armory Infiltrator-Golem | -3/Research Golem | -2/Research Golem | -1/Access Resources | -11 -10 -10 -10 -9 -8 -7 -7 -7 -7 -7 -6 -6 -6 -6 -6 -6 -5 -4 -4 -3 -2 -1 ----------- Run | Yrd Mat Min Exi Min Mat Fac Low Low Zio Dee Pro Fac Ext Cet Arc Hub Fac Fac Arm Res Res Acc Matter Collected 5691 | 270 212 168 140 28 742 408 210 175 222 520 90 47 232 45 . 17 110 191 551 335 512 466 Remotely . | . . . . . . . . . . . . . . . . . . . . . . . Salvage Created 15243 | 130 407 65 . 139 1579 319 113 81 . 691 79 77 1400 151 313 469 1554 896 2571 447 1282 2480 Parts 753 | 7 35 6 . 5 84 23 2 5 . 20 14 4 67 5 15 27 74 47 109 21 74 109 Haulers Intercepted 4 | . . . . . 4 . . . . . . . . . . . . . . . . . Recyclers Shooed 9 | . 1 . . . 3 . . . . . . . . . . . . . . . 3 2 Parts Field Recycled . | . . . . . . . . . . . . . . . . . . . . . . . Retrieved Matter . | . . . . . . . . . . . . . . . . . . . . . . . Parts Self-Destructed 15 | . . . . . . . 2 3 . . 10 . . . . . . . . . . . Prevented . | . . . . . . . . . . . . . . . . . . . . . . . Parts Restored . | . . . . . . . . . . . . . . . . . . . . . . . Kills | -11 -10 -10 -10 -9 -8 -7 -7 -7 -7 -7 -6 -6 -6 -6 -6 -6 -5 -4 -4 -3 -2 -1 ------- Run | Yrd Mat Min Exi Min Mat Fac Low Low Zio Dee Pro Fac Ext Cet Arc Hub Fac Fac Arm Res Res Acc Combat Hostiles Destroyed 262 | . 10 3 . 3 26 8 4 7 . 47 6 . 22 1 2 2 16 13 40 5 22 25 Guns 22 | . 9 2 . 3 8 . . . . . . . . . . . . . . . . . Cannons 138 | . . . . . 9 5 . . . 3 . . 18 1 2 2 15 11 34 5 13 20 AOE 94 | . 1 1 . . 8 3 4 7 . 42 6 . 4 . . . 1 2 6 . 8 1 Classes Destroyed 23 | 2 5 1 . 1 4 1 . . . 5 . 1 1 . . 1 . . . 1 . . Worker 4 | . 1 . . . 2 . . . . . . . . . . . 1 . . . . . Builder 8 | . 1 . . . . . . . . . . . 1 . . . 3 . . . . 3 Tunneler 6 | 2 1 . . . 1 2 . . . . . . . . . . . . . . . . Hauler 4 | . . . . . 4 . . . . . . . . . . . . . . . . . Recycler 14 | 1 1 . . . 3 . . . . . . . 1 . . . 3 1 . . 1 3 Mechanic 4 | . . . . . . . . . . . . 1 . . . . 1 . 1 . . 1 Operator 8 | . . . . . . . . . . . . . 1 . 4 . . . 2 1 . . Watcher 17 | . 1 . . . 4 . . . . . . 1 . 1 . 1 2 1 2 2 1 1 Swarmer 50 | . 6 . . . 4 3 4 7 . . 6 . 4 . . . . 3 5 . 8 . Grunt 51 | . 4 2 . 2 14 . . . . . . . 9 . . . 2 2 11 2 . 3 Brawler 2 | . . . . 1 . . . . . . . . . . . . . . . . . 1 Duelist 4 | . . . . . 1 . . . . . . . . . . . . 1 2 . . . Sentry 35 | . . . . . 4 2 . . . . . . 7 . 2 1 5 2 5 . 4 3 Demolisher 4 | . . 1 . . . . . . . . . . . . . . 1 . 2 . . . Hunter 21 | . . . . . 3 . . . . . . . . . . . 2 2 6 2 . 6 Programmer 42 | . . . . . . 3 . . . . . . . . . . 6 3 8 . 10 12 Heavy 1 | . . . . . . . . . . . . . . . . 1 . . . . . . Behemoth 3 | . . . . . . . . . . . . . 2 . . . . . 1 . . . Cetus Guard 1 | . . . . . . . . . . . . . . 1 . . . . . . . . Enhanced Grunt 2 | . . . . . . . . . . . . . . . . 2 . . . . . . Striker 1 | . . . . . . . . . . . . . . . . . . . . 1 . . Z-Technician 4 | . . . . . . . . . . 4 . . . . . . . . . . . . Z-Light 8 | . . . . . . . . . . 8 . . . . . . . . . . . . Packrat 1 | . . . . . . . 1 . . . . . . . . . . . . . . . Assembler 2 | . . . . . . . . . . 2 . . . . . . . . . . . . Assembled 36 | . . . . . . . . . . 36 . . . . . . . . . . . . Golem 2 | . . . . . . . . . . 2 . . . . . . . . . . . . Thug 1 | . . . . . . . . . . . . . . 1 . . . . . . . . Savage 2 | . . . . . . . . . . 1 . . . . . 1 . . . . . . Butcher 1 | . . . . . . . . . . 1 . . . . . . . . . . . . Guerrilla 1 | . . . . . . . . . . . . . . . . 1 . . . . . . Best Kill Streak 38 | 3 4 2 . 3 12 3 4 4 . 38 4 1 7 1 4 1 4 4 7 2 9 4 Combat Bots Only 36 | . 3 2 . 3 4 3 4 4 . 36 4 . 6 1 2 1 2 3 7 2 9 4 Max Kills in Single Turn 12 | 1 3 1 . 1 4 2 2 4 . 12 3 1 2 1 1 1 3 2 5 1 6 2 Gunslinging 1 | . 1 . . . . . . . . . . . . . . . . . . . . . Exploded 12 | . 1 1 . . 4 2 2 4 . 12 3 . 2 . . . 1 2 5 . 6 1 Melee . | . . . . . . . . . . . . . . . . . . . . . . . Uniques/NPCs Destroyed 1 | . . . . . . . . . . 1 . . . . . . . . . . . . Z-Imprinter (-7/Deep Caves) Combat | -11 -10 -10 -10 -9 -8 -7 -7 -7 -7 -7 -6 -6 -6 -6 -6 -6 -5 -4 -4 -3 -2 -1 -------- Run | Yrd Mat Min Exi Min Mat Fac Low Low Zio Dee Pro Fac Ext Cet Arc Hub Fac Fac Arm Res Res Acc Hostile Shots Fired 2310 | . 48 19 . 7 146 63 34 11 . 112 5 . 147 19 . 12 159 149 486 98 190 605 Missed 885 | . 12 4 . 1 44 29 11 6 . 24 2 . 62 9 . 3 40 55 217 40 67 259 Deflected 1 | . . . . . . . . . . . . . . . . . . . 1 . . . Hits 1425 | . 36 15 . 6 102 34 23 5 . 88 3 . 85 10 . 9 119 94 269 58 123 346 Melee 20 | . . . . 2 . . . . . 4 . . . . . . 1 3 7 3 . . Projectile 1405 | . 36 15 . 4 102 34 23 5 . 84 3 . 85 10 . 9 118 91 262 55 123 346 AOE 38 | . . 13 . . . . . . . . . . . . . . 6 1 4 11 . 3 Critical Strikes 61 | . 1 . . . 2 . 2 . . . . . 2 1 . 3 7 2 13 2 12 14 Actively Blocked 24 | . . . . . . . . . . . . . . . . . . . . . 11 13 Part Disruptions 9 | . . . . . . . . . . . . . . . . . 1 1 . . 1 6 Damage Taken 27294 | . 351 530 . 99 1462 388 238 142 . 2720 51 . 637 243 . 400 2543 1788 4342 1140 2509 7711 Core 3494 | . 76 145 . . 211 48 55 17 . 180 . . 59 . . 40 188 216 421 108 235 1495 Absorbed by Shields 1653 | . . . . . . . . . . . . . 136 58 . . 56 201 672 309 149 72 Redirected to Shielding 230 | . . . . . . . . . . 230 . . . . . . . . . . . . Ignored by Resistances 2216 | . . . . . 47 . . . . . . . . . . . 464 . 442 290 357 616 Regen/Repaired (Parts) 113 | . . . . . 26 . . . . . . . . . . . 87 . . . . . Core Remaining (%) 62 | 100 . . . 11 61 . . . . . 57 . . . . 88 81 . 44 91 83 6 Volleys Fired 890 | 6 31 7 . 15 108 19 15 9 . 51 6 8 59 17 16 7 70 51 172 42 79 102 Largest 3 | 2 2 2 . 2 2 2 2 2 . 2 2 2 2 2 2 2 2 2 2 2 2 3 Hottest 175 | 40 40 40 . 40 160 160 130 130 . 175 50 50 50 50 50 50 50 50 50 50 52 80 Shots Fired 1488 | 12 60 12 . 30 193 34 21 16 . 58 9 12 101 34 32 11 106 79 260 74 133 201 Gun 223 | 12 58 10 . 30 113 . . . . . . . . . . . . . . . . . Cannon 1202 | . . . . . 70 32 19 13 . 38 6 12 98 34 32 11 106 78 254 74 129 196 Launcher 63 | . 2 2 . . 10 2 2 3 . 20 3 . 3 . . . . 1 6 . 4 5 Special . | . . . . . . . . . . . . . . . . . . . . . . . Kinetic 222 | 12 58 10 . 30 112 . . . . . . . . . . . . . . . . . Thermal 1191 | . . . . . 71 32 19 13 . 26 6 12 98 34 32 11 106 78 254 74 129 196 Explosive 58 | . 2 2 . . 10 2 2 3 . 20 3 . 3 . . . . 1 6 . 4 . Electromagnetic 17 | . . . . . . . . . . 12 . . . . . . . . . . . 5 Robot Hit Streak 31 | 10 12 10 . 6 19 13 1 . . 14 . 3 14 11 10 5 16 10 15 17 31 24 Robot Miss Streak 5 | . 4 1 . 3 5 2 1 1 . 2 . 1 2 1 5 1 5 2 3 3 2 2 Penetration Max . | . . . . . . . . . . . . . . . . . . . . . . . Secondary Targets 3 | . 1 . . 2 . . . . . . . . . . . . . . . . . . Max Gunslinging Chain 1 | . 1 . . 1 . . . . . . . . . . . . . . . . . . Shots Hit Robots 884 | 10 33 5 . 21 125 21 2 . . 20 . 6 71 27 21 5 73 46 168 48 80 102 Core Hits 557 | 4 23 6 . 9 80 11 4 8 . 92 8 2 34 9 11 10 30 23 83 15 42 53 Critical Kills 2 | . . . . . 2 . . . . . . . . . . . . . . . . . Critical Parts Destroyed 2 | . . . . . . 1 1 . . . . . . . . . . . . . . . Critical Strikes 4 | . . . . . 2 1 1 . . . . . . . . . . . . . . . Meltdown 1 | . . . . . 1 . . . . . . . . . . . . . . . . . Destroy 1 | . . . . . 1 . . . . . . . . . . . . . . . . . Smash 2 | . . . . . . 1 1 . . . . . . . . . . . . . . . Melee Attacks 9 | . . . . . . 8 1 . . . . . . . . . . . . . . . Impact 9 | . . . . . . 8 1 . . . . . . . . . . . . . . . Slashing . | . . . . . . . . . . . . . . . . . . . . . . . Piercing . | . . . . . . . . . . . . . . . . . . . . . . . Sneak Attacks 2 | . . . . . . 1 1 . . . . . . . . . . . . . . . Combat Hostiles . | . . . . . . . . . . . . . . . . . . . . . . . Follow-up Attacks . | . . . . . . . . . . . . . . . . . . . . . . . Damage Inflicted 49894 | 109 502 150 . 175 3065 887 409 535 . 6564 425 298 4081 1304 1072 651 4307 2475 9162 2447 5294 5982 Guns 1444 | 109 345 34 . 175 781 . . . . . . . . . . . . . . . . . Cannons 34245 | . . . . . 1106 556 30 . . 428 . 261 3519 1304 1072 212 3657 2321 8137 2447 3936 5259 Explosions 13308 | . 153 116 . . 1157 249 301 530 . 6136 425 . 538 . . 425 580 148 1015 . 915 620 Melee 151 | . . . . . . 73 78 . . . . . . . . . . . . . . . Ramming 746 | . 4 . . . 21 9 . 5 . . . 37 24 . . 14 70 6 10 . 443 103 Kinetic 1426 | 109 345 34 . 175 763 . . . . . . . . . . . . . . . . . Thermal 36397 | . . . . . 1124 556 30 . . 1982 . 261 3519 1304 1072 212 4237 2321 8137 2447 3936 5259 Explosive 10032 | . 153 116 . . 1157 249 301 530 . 4353 425 . 538 . . . . 148 1015 . 915 132 Electromagnetic 1142 | . . . . . . . . . . 229 . . . . . 425 . . . . . 488 Impact 151 | . . . . . . 73 78 . . . . . . . . . . . . . . . Slashing . | . . . . . . . . . . . . . . . . . . . . . . . Piercing . | . . . . . . . . . . . . . . . . . . . . . . . Highest Corruption 36 | . . . . . . 2 2 2 2 . . . 2 2 2 7 5 2 15 . 16 36 Average Corruption 4 | . . . . . . 1 2 2 2 . . . 2 2 2 2 2 1 5 . 15 10 Corruption Purged . | . . . . . . . . . . . . . . . . . . . . . . . Corruption Blocked . | . . . . . . . . . . . . . . . . . . . . . . . Effects 244 | . . . . . . 8 8 10 . . . . 23 6 6 7 16 6 56 . 40 58 Message Errors 48 | . . . . . . . 3 2 . . . . 4 2 1 . 6 2 7 . 10 11 Matter Fused 64 | . . . . . . 2 3 2 . . . . 6 2 2 1 1 1 17 . 13 14 Heat Flow Errors 28 | . . . . . . 3 . 3 . . . . 2 . . . . . 9 . 3 8 Energy Discharges 23 | . . . . . . 1 1 . . . . . 4 . 2 1 2 . 6 . 3 3 Parts Rejected 5 | . . . . . . . . . . . . . . 2 . . . . 1 . . 2 Parts Fused 3 | . . . . . . . . . . . . . 2 . . . . . . . . 1 Data Loss (minor) 22 | . . . . . . 2 . 1 . . . . 4 . 1 1 1 1 2 . 3 6 Data Loss (major) 14 | . . . . . . . . . . . . . 1 . . 3 2 1 4 . 3 . Misfires 15 | . . . . . . . 1 1 . . . . . . . . 3 1 2 . 2 5 Alerts 9 | . . . . . . . . 1 . . . . . . . . 1 . 3 . 2 2 Misdirections 5 | . . . . . . . . . . . . . . . . . . . . . . 5 Weapon Failures 8 | . . . . . . . . . . . . . . . . 1 . . 5 . 1 1 Overload Shots . | . . . . . . . . . . . . . . . . . . . . . . . Overflow Damage 2711 | . . . . . 24 109 127 . . 326 . 64 118 37 101 47 314 60 381 215 288 500 Projectiles 1762 | . . . . . 6 . . . . 6 . 42 93 37 101 46 109 60 381 215 192 474 Explosions 694 | . . . . . 18 36 49 . . 320 . . 25 . . 1 198 . . . 47 . Melee 255 | . . . . . . 73 78 . . . . 22 . . . . 7 . . . 49 26 Knockbacks 5 | . . . . . . . 1 . . . . 1 . . . . . . . . 2 1 Impact 4 | . . . . . . . 1 . . . . 1 . . . . . . . . 2 . Kinetic . | . . . . . . . . . . . . . . . . . . . . . . . Secondary 1 | . . . . . . . . . . . . . . . . . . . . . . 1 Self-Inflicted Damage 506 | . . . . . 51 . . 73 . 55 . . 2 . . 96 85 40 . . 33 71 Shots 21 | . . . . . 3 . . 2 . 1 . . 1 . . 1 1 1 . . 1 10 Rammed 5 | . 1 . . . . 1 . 1 . . . . . . . . . . . . . 2 Targets Rammed 57 | . 1 . . . 4 1 . 1 . . . 1 3 . . 1 3 1 1 . 36 4 Kicked 52 | . . . . . 4 . . . . . . 1 3 . . 1 3 1 1 . 36 2 Crushed . | . . . . . . . . . . . . . . . . . . . . . . . Highest Temperature 509 | . 9 9 . 12 249 232 509 246 . 204 . . 230 . . . 28 42 276 8 160 269 Average Temperature 68 | . 6 9 . 7 63 52 144 55 . 78 . . 95 . . . 9 14 88 8 76 123 Received Heat Transfer 3680 | . 102 15 . 24 576 36 684 . . 432 . . 197 40 . . 351 173 546 150 117 237 Effects 7 | . . . . . . . 7 . . . . . . . . . . . . . . . Interference 3 | . . . . . . . 3 . . . . . . . . . . . . . . . Damage (major) 4 | . . . . . . . 4 . . . . . . . . . . . . . . . Siege Activations . | . . . . . . . . . . . . . . . . . . . . . . . Martial Activations . | . . . . . . . . . . . . . . . . . . . . . . . Shielding Activations 4 | . . . . . . . . . . . . . . . . . . 1 2 1 . . Total Turns 52 | . . . . . . . . . . . . . . . . . . 12 37 3 . . Longest Duration 19 | . . . . . . . . . . . . . . . . . . 12 19 3 . . Robots Disrupted . | . . . . . . . . . . . . . . . . . . . . . . . Combat Hostiles . | . . . . . . . . . . . . . . . . . . . . . . . Robots Corrupted 13 | . . . . . . . 1 . . 2 . . . . . 3 1 . . . 1 5 Combat Hostiles 7 | . . . . . . . . . . 2 . . . . . . . . . . 1 4 Parts Fried 15 | . . . . . . 1 . . . . . . 1 . . 2 3 . . . . 8 Impact Corruptions 14 | . . . . . . 2 2 . . . . 1 . . . . 1 . . . 6 2 Robots Melted 1 | . . . . . 1 . . . . . . . . . . . . . . . . . Combat Hostiles 1 | . . . . . 1 . . . . . . . . . . . . . . . . . Parts Melted 23 | . . . . . 9 1 . . . . . . 1 . . . 1 2 3 . 2 4 Heat Transferred 20523 | . . . . . 2187 820 37 . . 348 . 150 1875 700 600 125 2300 1200 4275 1231 2000 2675 Parts Sabotaged . | . . . . . . . . . . . . . . . . . . . . . . . Parts Stolen . | . . . . . . . . . . . . . . . . . . . . . . . Parts Stripped . | . . . . . . . . . . . . . . . . . . . . . . . Power Chain Reactions 1 | . . . . . . . . . . 1 . . . . . . . . . . . . Alert | -11 -10 -10 -10 -9 -8 -7 -7 -7 -7 -7 -6 -6 -6 -6 -6 -6 -5 -4 -4 -3 -2 -1 ------- Run | Yrd Mat Min Exi Min Mat Fac Low Low Zio Dee Pro Fac Ext Cet Arc Hub Fac Fac Arm Res Res Acc Maximum Alert Level 3 | . . . . . 2 1 . . . . . . 3 2 1 3 2 1 3 2 1 3 Low Security (%) 45 | 100 100 100 . 100 64 62 . . . . . 100 21 . 19 38 . 41 24 35 78 3 Level 1 33 | . . . . . 11 37 . . . . . . 48 39 80 32 49 58 38 45 21 51 Level 2 17 | . . . . . 24 . . . . . . . 6 60 . 23 50 . 22 18 . 43 Level 3 3 | . . . . . . . . . . . . . 22 . . 6 . . 14 . . . Level 4 . | . . . . . . . . . . . . . . . . . . . . . . . Level 5 . | . . . . . . . . . . . . . . . . . . . . . . . High Security . | . . . . . . . . . . . . . . . . . . . . . . . Max Security . | . . . . . . . . . . . . . . . . . . . . . . . Peak Influence 858 | 15 185 66 . 60 494 270 . . . . . 15 818 482 302 787 635 316 858 437 399 706 Initial 437 | . . . . . . 223 . . . . . 11 . 430 155 56 385 156 113 437 74 232 Average 247 | 1 41 8 . 13 168 166 . . . . . 1 373 405 240 274 442 212 395 272 112 398 Influence Increases 10584 | 15 347 96 . 70 1001 364 105 160 . . 140 60 1710 352 237 991 831 474 1422 190 836 1183 Destroy 0b10 Robot/C 5040 | . 200 60 . 60 520 160 80 140 . . 120 . 760 160 80 280 320 260 800 100 440 500 Destroy 0b10 Robot/NC 355 | 15 25 . . . 70 10 . . . . . 10 30 10 20 15 50 10 25 15 10 40 Destroy Leader 1014 | . 32 10 . 10 136 60 10 20 . . 20 2 64 . . 72 94 62 174 14 92 142 Allied During Kill 1178 | . . . . . . . . . . . . . 679 170 100 229 . . . . . . Successful Hack 202 | . 26 . . . 21 52 . . . . . 14 . . . . 15 2 . . 24 48 Disable Machine 945 | . 15 15 . . 75 45 . . . . . 30 90 . 30 225 195 15 120 15 15 60 Destroy Structure 1340 | . 19 11 . . 74 22 . . . . . 4 57 12 7 140 142 80 228 46 255 243 Partial Spotted 75 | . . . . . . 15 . . . . . . . . . 15 15 . . . . 30 Lose Combat Pursuer 435 | . 30 . . . 105 . 15 . . . . . 30 . . 15 . 45 75 . . 120 Influence Decreases 10061 | 15 347 96 . 70 510 766 194 160 . . 122 78 941 733 463 366 1298 562 821 890 582 1047 Entered New Map 2282 | . . . . . . 268 34 . . . . 7 . 339 233 106 402 164 119 396 59 155 Time Decay 6129 | 15 347 96 . 70 460 498 160 160 . . 122 71 561 254 190 140 506 368 592 474 433 612 Lost Part 650 | . . . . . 50 . . . . . . . . . . 20 70 30 90 20 90 280 Lost Ally 400 | . . . . . . . . . . . . . 80 140 40 100 20 . 20 . . . Purge Threat 600 | . . . . . . . . . . . . . 300 . . . 300 . . . . . Squads Dispatched 52 | . . . . . 2 4 . . . . . . 3 . . 6 5 2 8 5 5 12 Investigation 5 | . . . . . . . . . . . . . . . . . . . . 3 . 2 Extermination 21 | . . . . . . 3 . . . . . . . . . . 2 2 4 . 4 6 Reinforcement 20 | . . . . . 2 1 . . . . . . 3 . . 3 2 . 4 2 1 2 Assault 2 | . . . . . . . . . . . . . . . . . . . . . . 2 Garrison 4 | . . . . . . . . . . . . . . . . 3 1 . . . . . Intercept . | . . . . . . . . . . . . . . . . . . . . . . . Searches Triggered . | . . . . . . . . . . . . . . . . . . . . . . . Construction Impeded 3 | . . . . . 1 . . . . . . . 1 . . . 1 . . . . . Haulers Reinforced 1 | . . . . . . . . . . . . . . . . 1 . . . . . . Active Scanning Responses . | . . . . . . . . . . . . . . . . . . . . . . . Cargo Convoy Interrupts . | . . . . . . . . . . . . . . . . . . . . . . . Stealth | -11 -10 -10 -10 -9 -8 -7 -7 -7 -7 -7 -6 -6 -6 -6 -6 -6 -5 -4 -4 -3 -2 -1 --------- Run | Yrd Mat Min Exi Min Mat Fac Low Low Zio Dee Pro Fac Ext Cet Arc Hub Fac Fac Arm Res Res Acc Distress Signals 21 | . 2 . . . 3 . . . . . . . 2 2 . 1 2 1 5 1 . 2 Communications Jammed 64 | . . . . . . . . . . . . . . . . . . 1 34 . 2 27 Distress Signals 64 | . . . . . . . . . . . . . . . . . . 1 34 . 2 27 Times Spotted 455 | . 15 5 . 3 46 10 5 7 . 48 4 3 36 10 8 11 26 24 62 31 24 77 Peak Tracking Total 37 | . 6 2 . 3 5 3 4 4 . 37 4 2 4 5 1 7 3 4 7 5 4 24 Tactical Retreats 30 | . 1 . . . 7 . 1 . . 1 . . 2 . . 1 . 2 5 . . 10 ECM-based Alert Blocks 10 | . . . . . . . . . . . . . . . . . . . . . . 10 Traps | -11 -10 -10 -10 -9 -8 -7 -7 -7 -7 -7 -6 -6 -6 -6 -6 -6 -5 -4 -4 -3 -2 -1 ------- Run | Yrd Mat Min Exi Min Mat Fac Low Low Zio Dee Pro Fac Ext Cet Arc Hub Fac Fac Arm Res Res Acc Traps Triggered 7 | . . . . . . . . . . . . . 2 . . . 1 1 1 2 . . Indirectly . | . . . . . . . . . . . . . . . . . . . . . . . Trap Hack Attempts . | . . . . . . . . . . . . . . . . . . . . . . . Triggered . | . . . . . . . . . . . . . . . . . . . . . . . Disarmed . | . . . . . . . . . . . . . . . . . . . . . . . Reprogrammed . | . . . . . . . . . . . . . . . . . . . . . . . Reused . | . . . . . . . . . . . . . . . . . . . . . . . Traps Extracted . | . . . . . . . . . . . . . . . . . . . . . . . Installed . | . . . . . . . . . . . . . . . . . . . . . . . Triggered . | . . . . . . . . . . . . . . . . . . . . . . . Machines | -11 -10 -10 -10 -9 -8 -7 -7 -7 -7 -7 -6 -6 -6 -6 -6 -6 -5 -4 -4 -3 -2 -1 ---------- Run | Yrd Mat Min Exi Min Mat Fac Low Low Zio Dee Pro Fac Ext Cet Arc Hub Fac Fac Arm Res Res Acc Machines Disabled 71 | . 1 1 . . 5 3 . . 3 3 . 2 8 . 2 15 13 1 8 1 1 4 Max in Single Turn 14 | . 1 1 . . 1 1 . . 1 2 . 1 1 . 1 14 5 1 1 1 1 1 Garrison Access 3 | . . . . . 1 1 . . . . . . . . . . . . . 1 . . Network Hub 1 | . . . . . . . . . . . . . . . . 1 . . . . . . Machines Repaired . | . . . . . . . . . . . . . . . . . . . . . . . Machines Dismantled 3 | . . . . . . . . . 3 . . . . . . . . . . . . . Machines Sabotaged . | . . . . . . . . . . . . . . . . . . . . . . . Overloaded Fab Kills . | . . . . . . . . . . . . . . . . . . . . . . . Hacking | -11 -10 -10 -10 -9 -8 -7 -7 -7 -7 -7 -6 -6 -6 -6 -6 -6 -5 -4 -4 -3 -2 -1 --------- Run | Yrd Mat Min Exi Min Mat Fac Low Low Zio Dee Pro Fac Ext Cet Arc Hub Fac Fac Arm Res Res Acc Machines Accessed 53 | . 6 . 1 . 8 8 . 1 . . . 3 . . . . 3 5 4 2 3 9 Terminals 28 | . 6 . . . 5 4 . . . . . 2 . . . . . 1 4 . 1 5 Fabricators 5 | . . . . . . 2 . . . . . 1 . . . . . 1 . . . 1 Repair Stations 2 | . . . . . 1 . . . . . . . . . . . 1 . . . . . Recycling Units . | . . . . . . . . . . . . . . . . . . . . . . . Scanalyzers 10 | . . . . . 1 1 . . . . . . . . . . 1 1 . 1 2 3 Garrison Access 6 | . . . . . 1 1 . . . . . . . . . . 1 2 . 1 . . Total Hacks 114 | . 14 . 1 . 17 19 . 1 . . . 4 . . . . 5 7 10 3 8 25 Successful 38 | . 8 . 1 . 6 9 . 1 . . . 2 . . . . 3 3 . 1 2 2 Failed 75 | . 6 . . . 11 10 . . . . . 2 . . . . 2 3 10 2 6 23 Catastrophic 23 | . . . . . 1 1 . . . . . . . . . . 2 3 4 . 2 10 Database Lockouts 1 | . . . . . . . . . . . . . . . . . . 1 . . . . Manual 37 | . 11 . . . 9 4 . . . . . 1 . 1 . . . 2 . . . 9 Terminals 62 | . 14 . . . 10 8 . . . . . 2 . . . . . 1 10 . 4 13 Fabricators 10 | . . . . . . 4 . . . . . 2 . . . . . 2 . . . 2 Repair Stations 4 | . . . . . 2 . . . . . . . . . . . 2 . . . . . Recycling Units . | . . . . . . . . . . . . . . . . . . . . . . . Scanalyzers 27 | . . . . . 3 5 . . . . . . . . . . 1 2 . 2 4 10 Garrison Access 9 | . . . . . 2 2 . . . . . . . . . . 2 2 . 1 . . Terminal Hacks 9 | . 1 . 1 . . 4 . 1 . . . 1 . . . . . . . . 1 . Record 1 | . . . 1 . . . . . . . . . . . . . . . . . . . Part Schematic 1 | . . . . . . 1 . . . . . . . . . . . . . . . . Prototype ID Bank 1 | . 1 . . . . . . . . . . . . . . . . . . . . . Open Door 2 | . . . . . . . . 1 . . . 1 . . . . . . . . . . Level Access Points 1 | . . . . . . 1 . . . . . . . . . . . . . . . . Branch Access Points 1 | . . . . . . 1 . . . . . . . . . . . . . . . . Alert Level 1 | . . . . . . . . . . . . . . . . . . . . . 1 . Registered Components 1 | . . . . . . 1 . . . . . . . . . . . . . . . . Fabricator Hacks 1 | . . . . . . . . . . . . . . . . . . 1 . . . . Network Status 1 | . . . . . . . . . . . . . . . . . . 1 . . . . Repair Station Hacks 4 | . . . . . 2 . . . . . . . . . . . 2 . . . . . Scan Component 2 | . . . . . 1 . . . . . . . . . . . 1 . . . . . Repair 2 | . . . . . 1 . . . . . . . . . . . 1 . . . . . Recycling Unit Hacks . | . . . . . . . . . . . . . . . . . . . . . . . Scanalyzer 8 | . . . . . . 3 . . . . . . . . . . 1 1 . . 1 2 Retrieve Study 8 | . . . . . . 3 . . . . . . . . . . 1 1 . . 1 2 Garrison Access Hacks 3 | . . . . . 1 1 . . . . . . . . . . . . . 1 . . Seal Access 3 | . . . . . 1 1 . . . . . . . . . . . . . 1 . . Unauthorized Hacks 13 | . 7 . . . 3 1 . . . . . 1 . . . . . 1 . . . . Terminals 12 | . 7 . . . 3 1 . . . . . 1 . . . . . . . . . . Botnet 7 | . 2 . . . 3 1 . . . . . 1 . . . . . . . . . . Skim 5 | . 5 . . . . . . . . . . . . . . . . . . . . . Fabricators 1 | . . . . . . . . . . . . . . . . . . 1 . . . . Liberate 1 | . . . . . . . . . . . . . . . . . . 1 . . . . Repair Stations . | . . . . . . . . . . . . . . . . . . . . . . . Recycling Units . | . . . . . . . . . . . . . . . . . . . . . . . Scanalyzers . | . . . . . . . . . . . . . . . . . . . . . . . Garrison Access . | . . . . . . . . . . . . . . . . . . . . . . . Data Cores Recovered 1 | . . . . . . . . . . . . . 1 . . . . . . . . . Used . | . . . . . . . . . . . . . . . . . . . . . . . Hacking Detections 40 | . 5 . . . 6 6 . . . . . 1 . . . . 2 3 4 1 3 9 Full Trace Events 2 | . . . . . . . . . . . . . . . . . . . . . . 2 Feedback Events . | . . . . . . . . . . . . . . . . . . . . . . . Feedback Blocked . | . . . . . . . . . . . . . . . . . . . . . . . Robot Schematics Acquired . | . . . . . . . . . . . . . . . . . . . . . . . Robots Built . | . . . . . . . . . . . . . . . . . . . . . . . Authchips . | . . . . . . . . . . . . . . . . . . . . . . . Time . | . . . . . . . . . . . . . . . . . . . . . . . Total Robot Build Rating . | . . . . . . . . . . . . . . . . . . . . . . . Part Schematics Acquired 1 | . . . . . . 1 . . . . . . . . . . . . . . . . Parts Built . | . . . . . . . . . . . . . . . . . . . . . . . Authchips . | . . . . . . . . . . . . . . . . . . . . . . . Time . | . . . . . . . . . . . . . . . . . . . . . . . Total Part Build Rating . | . . . . . . . . . . . . . . . . . . . . . . . Part Studies Acquired 8 | . . . . . . 3 . . . . . . . . . . 1 1 . . 1 2 Parts Repaired 2 | . . . . . 1 . . . . . . . . . . . 1 . . . . . Time 94 | . . . . . 44 . . . . . . . . . . . 50 . . . . . Parts Recycled . | . . . . . . . . . . . . . . . . . . . . . . . Recycled Matter . | . . . . . . . . . . . . . . . . . . . . . . . Retrieved Matter . | . . . . . . . . . . . . . . . . . . . . . . . Retrieved Components . | . . . . . . . . . . . . . . . . . . . . . . . Parts Scanalyzed . | . . . . . . . . . . . . . . . . . . . . . . . Part Schematics Acquired . | . . . . . . . . . . . . . . . . . . . . . . . Parts Damaged . | . . . . . . . . . . . . . . . . . . . . . . . Bothacking | -11 -10 -10 -10 -9 -8 -7 -7 -7 -7 -7 -6 -6 -6 -6 -6 -6 -5 -4 -4 -3 -2 -1 ------------ Run | Yrd Mat Min Exi Min Mat Fac Low Low Zio Dee Pro Fac Ext Cet Arc Hub Fac Fac Arm Res Res Acc Used RIF Installer . | . . . . . . . . . . . . . . . . . . . . . . . Robots Hacked . | . . . . . . . . . . . . . . . . . . . . . . . Non-combat . | . . . . . . . . . . . . . . . . . . . . . . . Combat . | . . . . . . . . . . . . . . . . . . . . . . . Robot Hacks Applied . | . . . . . . . . . . . . . . . . . . . . . . . Relay Couplers Released . | . . . . . . . . . . . . . . . . . . . . . . . Fabnet Peak Effective % . | . . . . . . . . . . . . . . . . . . . . . . . Robots Rewired 29 | . . . . . . . . . . . . . 29 . . . . . . . . . Allies Hacked . | . . . . . . . . . . . . . . . . . . . . . . . Hacks Repelled . | . . . . . . . . . . . . . . . . . . . . . . . Allies | -11 -10 -10 -10 -9 -8 -7 -7 -7 -7 -7 -6 -6 -6 -6 -6 -6 -5 -4 -4 -3 -2 -1 -------- Run | Yrd Mat Min Exi Min Mat Fac Low Low Zio Dee Pro Fac Ext Cet Arc Hub Fac Fac Arm Res Res Acc Total Allies 47 | . . . . . . . . . 4 . . . 38 5 . . . . . . . . Largest Group 32 | . . . . . . . . . 4 4 . . 32 26 19 16 2 . . . . . Highest-Rated Group 1160 | . . . . . . . . . 110 110 . . 1017 1160 949 720 130 . . . . . Highest-Rated Ally 159 | . . . . . . . . . 51 51 . . 159 159 159 96 96 . . . . . Total Orders 15 | . . . . . . . . . . . . 2 4 1 . 1 2 . 5 . . . STAY 1 | . . . . . . . . . . . . . . . . 1 . . . . . . EXPLORE 3 | . . . . . . . . . . . . . . . . . . . 3 . . . RETURN 11 | . . . . . . . . . . . . 2 4 1 . . 2 . 2 . . . Ally Attacks 315 | . . . . . . . . . . 3 . . 135 93 13 67 4 . . . . . Total Damage 8252 | . . . . . . . . . . 16 . . 3009 1918 250 2204 855 . . . . . Kills 54 | . . . . . . . . . . 1 . . 21 9 2 17 4 . . . . . Allies Corrupted 3 | . . . . . . . . . . . . . . . . 3 . . . . . . Allies Melted . | . . . . . . . . . . . . . . . . . . . . . . . Intel | -11 -10 -10 -10 -9 -8 -7 -7 -7 -7 -7 -6 -6 -6 -6 -6 -6 -5 -4 -4 -3 -2 -1 ------- Run | Yrd Mat Min Exi Min Mat Fac Low Low Zio Dee Pro Fac Ext Cet Arc Hub Fac Fac Arm Res Res Acc Active Infowar (turns) 23195 | 31 1547 467 545 336 534 1236 444 839 1751 2895 483 574 1736 551 382 272 1305 853 1765 1216 1432 2001 Optics 12800 | . . . . . . . . . 1275 2895 483 574 1736 551 382 272 . . . 1199 1432 2001 Sensors 5919 | . . . . . . . . . . . . . . . . . 1305 853 672 422 1024 1643 Terrain 1767 | . . . . . . . . . . . . . . . . . . . . 6 . 1761 Structural 291 | . . . . . . . . . . . . . . . . . . . . . 291 . Seismic 12926 | 31 1547 467 545 336 534 1236 444 839 1734 165 . 505 998 . . . . . 1050 552 292 1651 Machine Analysis 3 | . . . . . . . . . . . . . . . . . . . 3 . . . Cloaking 2145 | . . . . . . . . . . . . . . . . . . 544 206 758 637 . Jamming 6626 | . . . . . . . . . . . . . . . . . 411 849 1074 1202 1380 1710 ECM 64 | . . . . . . . . . . . . . . . . . . . . . . 64 Robot Analysis Total . | . . . . . . . . . . . . . . . . . . . . . . . Derelict Logs Recovered 4 | . . 1 . . . . . . 2 . 1 . . . . . . . . . . . Drone Launches 14 | . . . . . . . . . . . . 2 4 1 . . 2 . 5 . . . Drone Recoveries 12 | . . . . . . . . . . . . 2 4 1 . . 2 . 3 . . . Exploration | -11 -10 -10 -10 -9 -8 -7 -7 -7 -7 -7 -6 -6 -6 -6 -6 -6 -5 -4 -4 -3 -2 -1 ------------- Run | Yrd Mat Min Exi Min Mat Fac Low Low Zio Dee Pro Fac Ext Cet Arc Hub Fac Fac Arm Res Res Acc Turns Passed 25149 | 120 1547 606 545 336 1834 1323 547 839 1786 2895 483 574 1736 551 382 290 1374 853 1878 1217 1432 2001 Spaces Moved 11760 | 39 549 273 210 111 767 671 309 499 1038 1224 217 269 686 151 85 181 660 456 788 702 576 1299 Core 117 | 2 . . . . . . . . . . . . . . . . . . . . . 115 Treads 4496 | 37 549 24 . . 244 671 309 499 1038 1125 . . . . . . . . . . . . Legs 6958 | . . 147 210 111 436 . . . . 99 217 269 686 151 85 181 660 456 788 702 576 1184 Wheels 189 | . . 102 . . 87 . . . . . . . . . . . . . . . . . Hover . | . . . . . . . . . . . . . . . . . . . . . . . Flight . | . . . . . . . . . . . . . . . . . . . . . . . Fastest Speed 50 | 50 160 110 260 260 110 156 160 160 160 130 130 195 128 128 128 128 123 120 120 127 117 50 Average Speed 154 | 154 231 206 260 260 167 158 160 160 160 163 191 195 135 128 128 128 135 124 134 131 140 116 Slowest Speed 320 | 160 240 320 260 260 190 160 160 160 160 240 195 195 195 128 128 128 285 173 185 136 183 178 Overloaded Moves . | . . . . . . . . . . . . . . . . . . . . . . . Propulsion Burnouts . | . . . . . . . . . . . . . . . . . . . . . . . Robots Hopped . | . . . . . . . . . . . . . . . . . . . . . . . Potential Cave-ins 6 | . . . . . . . 2 . . . . . . . . . . . . . 4 . Cave-ins Triggered . | . . . . . . . . . . . . . . . . . . . . . . . Exploration Rate (%) 48 | 5 81 52 57 33 53 23 52 66 90 93 49 9 89 76 87 34 20 16 57 20 17 29 Regions Visited 22 Branch Regions 13 Pre-discovered Areas 3 | . 1 . 1 . . . . . 1 . . . . . . . . . . . . . Known Exits Taken 11 | . . 1 . . . 1 . . . . 1 1 1 . . 1 1 1 1 1 1 . Unknown Exits Taken 11 | 1 1 . 1 1 1 . 1 1 1 1 . . . 1 1 . . . . . . . Scrap Searched 11 | . . 1 . 1 . . 2 2 4 . 1 . . . . . . . . . . . Spaces Dug 218 | . 7 . . . . 1 14 34 . . 24 1 37 . . . 7 21 19 8 15 30 Terrain Destroyed 1152 | . 18 16 . . 83 21 28 56 . 161 53 4 69 5 6 171 72 42 116 21 127 83 Melee . | . . . . . . . . . . . . . . . . . . . . . . . Projectile 307 | . . . . . 11 2 9 2 . 5 6 4 14 5 6 2 25 27 65 21 42 61 AOE 845 | . 18 16 . . 72 19 19 54 . 156 47 . 55 . . 169 47 15 51 . 85 22 Terrain Rammed . | . . . . . . . . . . . . . . . . . . . . . . . Walls Destroyed . | . . . . . . . . . . . . . . . . . . . . . . . Machines Disabled . | . . . . . . . . . . . . . . . . . . . . . . . Actions | -11 -10 -10 -10 -9 -8 -7 -7 -7 -7 -7 -6 -6 -6 -6 -6 -6 -5 -4 -4 -3 -2 -1 --------- Run | Yrd Mat Min Exi Min Mat Fac Low Low Zio Dee Pro Fac Ext Cet Arc Hub Fac Fac Arm Res Res Acc Total 17215 | 85 768 304 211 136 1153 886 337 526 1110 2066 275 304 1395 474 327 228 1039 662 1341 914 1051 1623 Wait 3476 | 33 164 5 . 10 129 117 5 . 14 715 49 16 404 305 225 38 278 122 303 104 294 146 Move 11737 | 38 548 272 209 110 766 670 308 498 1037 1223 216 268 685 150 84 180 659 455 787 701 575 1298 Hop . | . . . . . . . . . . . . . . . . . . . . . . . Pick Up 172 | 1 17 6 1 1 41 12 1 3 4 15 . 3 8 . . 1 8 7 15 12 6 10 Fast Attach 72 | 7 . . . . 16 3 . . 11 2 . 1 . 2 . . 2 1 8 3 5 11 Attach 70 | . . 7 . . 14 2 . . 1 18 . . 1 . . . 4 4 5 3 4 7 Detach 79 | . . 1 . . 4 . . . 5 12 2 . 2 . 2 . 7 4 10 7 13 10 Swap 235 | . 6 6 . . 23 30 6 9 2 13 2 5 11 . . . 6 12 24 28 28 24 Drop 177 | . 1 . 1 . 48 24 1 6 9 17 . 2 8 . . 1 2 5 16 14 11 11 Fire 890 | 6 31 7 . 15 108 19 15 9 . 51 6 8 59 17 16 7 70 51 172 42 79 102 Melee 9 | . . . . . . 8 1 . . . . . . . . . . . . . . . Ram 2 | . . . . . . . . . . . . . . . . . . . . . . 2 Kick 52 | . . . . . 4 . . . . . . 1 3 . . 1 3 1 1 . 36 2 Crush 3 | . 1 . . . . 1 . 1 . . . . . . . . . . . . . . Escape Stasis 5 | . . . . . . . . . . . . . 5 . . . . . . . . . Rewire 209 | . . . . . . . . . . . . . 209 . . . . . . . . . Trap . | . . . . . . . . . . . . . . . . . . . . . . . Miscellaneous 27 | . . . . . . . . . 27 . . . . . . . . . . . . . Route ------- -11/Scrapyard -10/Materials (discovered 4 exits: *Mat x2 / [*Min] / *Sub) -10/Mines (discovered 4 exits: Mat x2 / *Exi / Sub) -10/Exiles -9/Mines -8/Materials -7/Factory (discovered 6 exits: Fac x4 / *Low x2) -7/Lower Caves -7/Lower Caves -7/Zion (discovered 2 exits: [*Dee] / [*Pro]) -7/Deep Caves -6/Proximity Caves -6/Factory (discovered 4 exits: Low x2 / *Ext x2) -6/Extension (discovered 3 exits: *Fac x2 / *Cet) -6/Cetus (discovered 2 exits: *Fac / [*Arc]) -6/Archives (discovered 3 exits: *Fac / [*Hub x2]) -6/Hub_04(d) -5/Factory -4/Factory -4/Armory -3/Research -2/Research -1/Access To Epsilon Eridani History --------- Turn | Location | Event 10 | -11/Scrapyard | Discovered new exit (range 16) 121 | -11/Scrapyard | Entered Materials 317 | -10/Materials | Build established: Mutant 477 | -10/Materials | Discovered new exit (range 10) 759 | -10/Materials | Discovered new exit (range 10) 985 | -10/Materials | Discovered new exit (range 8) 1256 | -10/Materials | Discovered new exit (range 16) 1443 | -10/Materials | Learned Storage stockpile data 1473 | -10/Materials | Loaded intel: 11 trap records 1491 | -10/Materials | Learned location of 2 exits from Mines 1498 | -10/Materials | Learned 2 Storage zone layouts 1499 | -10/Materials | Learned location of 2 exits from Mines 1501 | -10/Materials | Learned location of Storage (-9) 1668 | -10/Materials | Entered Mines 1669 | -10/Mines | Assembled infested the area 1669 | -10/Mines | Identified exit to Exiles 1669 | -10/Mines | Identified exit to Materials 1669 | -10/Mines | Identified exit to Subcaves 1685 | -10/Mines | Core integrity fell below 50% 1698 | -10/Mines | Core integrity fell below 20% 1700 | -10/Mines | Met 8R-AWN 1728 | -10/Mines | Lost 6 parts (1p2n1u2w) 2047 | -10/Mines | Build established: Scavenger-Mutant 2274 | -10/Mines | Entered Exiles 2345 | -10/Exiles | Welcomed by 8R-AWN 2381 | -10/Exiles | Met EX-HEX 2542 | -10/Exiles | Met EX-BIN 2605 | -10/Exiles | Met EX-DEC 2615 | -10/Exiles | Learned location of Zion (-7) 2796 | -10/Exiles | Discovered new exit (range 10) 2819 | -10/Exiles | Entered Mines 2820 | -9/Mines | Met a Derelict bent on vengeance 3119 | -9/Mines | Discovered new exit (range 15) 3155 | -9/Mines | Entered Materials 3155 | -8/Materials | Evolved 4 slots: Propulsion x2, Utility x2 3715 | -8/Materials | Build established: Mutant 4283 | -8/Materials | Discovered new exit (range 10) 4771 | -8/Materials | Build established: Scavenger-Mutant 4801 | -8/Materials | Repaired Hvy. Rocket Launcher 4989 | -8/Materials | Entered Factory 4989 | -7/Factory | Evolved 2 slots: Power x1, Utility x1 5141 | -7/Factory | Identified exit to Factory 5530 | -7/Factory | Identified exit to Lower Caves 5698 | -7/Factory | Build established: Mutant 5801 | -7/Factory | Found Powered Armor 6312 | -7/Factory | Entered Lower Caves 6641 | -7/Lower Caves | Spotted B-75 Beast 6820 | -7/Lower Caves | Discovered new exit (range 7) 6859 | -7/Lower Caves | Entered another Lower Caves area 7584 | -7/Lower Caves | Encountered a Warlord checkpoint 7656 | -7/Lower Caves | Discovered new exit (range 9) 7698 | -7/Lower Caves | Entered Zion 7743 | -7/Zion | System corruption cleaned by Quarantine Array 7849 | -7/Zion | Found CR-A16's Pointy Stick 7882 | -7/Zion | Given the Hacking Drone Bay 7882 | -7/Zion | Found Prototype Device 7882 | -7/Zion | Identified Hacking Drone Bay 7898 | -7/Zion | Discovered new exit (range 10) 7960 | -7/Zion | Learned Factory security intel 8187 | -7/Zion | Found Prototype Processor 8187 | -7/Zion | Identified Exp. Terrain Scan Processor 8192 | -7/Zion | Found Prototype Processor 8192 | -7/Zion | Identified Exp. Melee Analysis Suite 8195 | -7/Zion | Found Prototype Processor 8195 | -7/Zion | Identified Exp. Armor Integrity Analyzer 8199 | -7/Zion | Found Prototype Processor 8199 | -7/Zion | Identified Exp. Targeting Computer 8389 | -7/Zion | Met Imprinter 8533 | -7/Zion | Learned Factory garrison access intel 8655 | -7/Zion | Gained Derelict followers 9331 | -7/Zion | Discovered new exit (range 3) 9331 | -7/Zion | Saw the warning signs outside the Deep Caves entrance 9484 | -7/Zion | Entered Deep Caves 9484 | -7/Deep Caves | Accompanied by 4 allies 9706 | -7/Deep Caves | Attacked by Z-Imprinter 9731 | -7/Deep Caves | Destroyed Z-Imprinter 9757 | -7/Deep Caves | Lost 4 allies 9874 | -7/Deep Caves | Z-Facility disabled 10091 | -7/Deep Caves | Lost 3 parts (1p1u1w) 10113 | -7/Deep Caves | Found Prototype Protection 10113 | -7/Deep Caves | Identified Zio. Weapon Casing 10258 | -7/Deep Caves | Found Zio. Weapon Casing 10648 | -7/Deep Caves | Discovered new exit (range 6) 10712 | -7/Deep Caves | Spotted Golem 10742 | -7/Deep Caves | Spotted Golem 10853 | -7/Deep Caves | Destroyed Golem 10859 | -7/Deep Caves | Found GOLEM Unit 10880 | -7/Deep Caves | Lost 3 parts (2n1u) 10948 | -7/Deep Caves | Destroyed Golem 10976 | -7/Deep Caves | Lost 4 parts (1p2n1u) 11132 | -7/Deep Caves | Found Zio. Weapon Casing 11471 | -7/Deep Caves | Triggered Deep Caves wall 11471 | -7/Deep Caves | Spotted Assembler 11471 | -7/Deep Caves | Spotted Assembler 11471 | -7/Deep Caves | Destroyed Assembler 11477 | -7/Deep Caves | Destroyed Assembler 11524 | -7/Deep Caves | Destroyed 36 combat bots 12004 | -7/Deep Caves | Build established: Golem 12053 | -7/Deep Caves | Exposed GOLEM chamber 12057 | -7/Deep Caves | Found GOLEM Unit 12062 | -7/Deep Caves | Found GOLEM Unit 12068 | -7/Deep Caves | Found GOLEM Unit 12072 | -7/Deep Caves | Found GOLEM Unit 12078 | -7/Deep Caves | Found GOLEM Unit 12379 | -7/Deep Caves | Entered Proximity Caves 12695 | -6/Proximity Caves | Learned Factory stockpile data 12775 | -6/Proximity Caves | Discovered exit to Factory (range 19) 12862 | -6/Proximity Caves | Entered Factory 12862 | -6/Factory | Evolved 2 slots: Propulsion x1, Utility x1 12865 | -6/Factory | Loaded intel: 4 garrison access locations 13243 | -6/Factory | Identified exit to Lower Caves 13243 | -6/Factory | Identified exit to Extension 13436 | -6/Factory | Entered Extension 13580 | -6/Extension | Rescued a captive Derelict 13581 | -6/Extension | Rescued a captive Derelict 13791 | -6/Extension | Rescued A7 13801 | -6/Extension | Lost 3 allies 13831 | -6/Extension | Identified exit to Factory 13906 | -6/Extension | Identified exit to Cetus 13977 | -6/Extension | Build established: Commander-Golem 14310 | -6/Extension | Spotted B-75 Beast 14345 | -6/Extension | Destroyed B-75 Beast 14352 | -6/Extension | Spotted B-75 Beast 14365 | -6/Extension | Destroyed B-75 Beast 14464 | -6/Extension | Rescued a captive Derelict 14580 | -6/Extension | Rescued a captive Derelict 14582 | -6/Extension | Rescued a captive Derelict 14616 | -6/Extension | Rescued a captive Derelict 14810 | -6/Extension | Rescued a captive Derelict 14811 | -6/Extension | Rescued a captive Derelict 15172 | -6/Extension | Entered Cetus 15172 | -6/Cetus | Accompanied by 26 allies (A7) 15177 | -6/Cetus | Acquired a Cetus Manufacturing Module code from A7 15183 | -6/Cetus | Spotted Cetus Guard 15191 | -6/Cetus | Spotted Cetus Guard 15193 | -6/Cetus | Spotted Cetus Guard 15193 | -6/Cetus | Spotted Cetus Guard 15204 | -6/Cetus | Destroyed Cetus Guard 15223 | -6/Cetus | Allies destroyed Cetus Guard 15224 | -6/Cetus | Allies destroyed Cetus Guard 15228 | -6/Cetus | Allies destroyed Cetus Guard 15252 | -6/Cetus | Lost 7 allies 15273 | -6/Cetus | Started Cetus Manufacturing Module 15298 | -6/Cetus | Manufactured an Enhanced Grunt 15323 | -6/Cetus | Manufactured an Enhanced Grunt 15348 | -6/Cetus | Manufactured an Enhanced Grunt 15373 | -6/Cetus | Manufactured an Enhanced Grunt 15398 | -6/Cetus | Manufactured an Enhanced Grunt 15465 | -6/Cetus | Escorted A7 to Cetus Mainframe 15480 | -6/Cetus | Discovered new exit (range 23) 15526 | -6/Cetus | Spotted Cetus Guard 15527 | -6/Cetus | Spotted Cetus Guard 15532 | -6/Cetus | Spotted Cetus Guard 15542 | -6/Cetus | Spotted Cetus Guard 15547 | -6/Cetus | Allies destroyed Cetus Guard 15548 | -6/Cetus | Discovered exit to Factory (range 22) 15550 | -6/Cetus | Allies destroyed Cetus Guard 15564 | -6/Cetus | Allies destroyed Cetus Guard 15565 | -6/Cetus | Allies destroyed Cetus Guard 15575 | -6/Cetus | Met Revision 17 15723 | -6/Cetus | Entered Archives 15723 | -6/Archives | Accompanied by 19 allies (A7) 15728 | -6/Archives | Received a hacking code to weaken MAIN.C 15759 | -6/Archives | Discovered new exit (range 22) 15767 | -6/Archives | Discovered exit to Factory (range 20) 15773 | -6/Archives | Discovered new exit (range 13) 16105 | -6/Archives | Entered Hub_04(d) 16105 | -6/Hub_04(d) | Accompanied by 16 allies 16229 | -6/Hub_04(d) | Discovered exit to Factory (range 15) 16233 | -6/Hub_04(d) | Lost 4 allies 16377 | -6/Hub_04(d) | Network Hub disabled 16379 | -6/Hub_04(d) | Spotted Lightning 16379 | -6/Hub_04(d) | Spotted Lightning 16379 | -6/Hub_04(d) | Spotted Lightning 16390 | -6/Hub_04(d) | Spotted Lightning 16393 | -6/Hub_04(d) | Allies destroyed Lightning 16395 | -6/Hub_04(d) | Entered Factory 16395 | -5/Factory | Accompanied by 2 allies 16395 | -5/Factory | Evolved 2 slots: Utility x2 16420 | -5/Factory | Lost 4 allies 16467 | -5/Factory | Assembled infested ambush trap array 16693 | -5/Factory | Build established: Golem 16750 | -5/Factory | Garrison activated, responded to threat 16928 | -5/Factory | Lost 3 parts (3n) 17443 | -5/Factory | Discovered new exit (range 12) 17475 | -5/Factory | Identified exit to Factory 17572 | -5/Factory | Repaired Flexi-carbon Leg+? 17769 | -5/Factory | Entered another Factory area 17769 | -4/Factory | Evolved 2 slots: Power x1, Propulsion x1 17793 | -4/Factory | Central database locked down 18608 | -4/Factory | Discovered new exit (range 11) 18621 | -4/Factory | Identified exit to Armory 18622 | -4/Factory | Entered Armory 19362 | -4/Armory | Lost 4 parts (1p1n2u) 19776 | -4/Armory | Spotted B-86 Titan 19846 | -4/Armory | Destroyed B-86 Titan 20167 | -4/Armory | Discovered new exit (range 3) 20169 | -4/Armory | Identified exit to Research 20250 | -4/Armory | Destroyed 7 combat bots 20266 | -4/Armory | Found Fusion Bomb Launcher 20270 | -4/Armory | Found Fusion Bomb Launcher 20347 | -4/Armory | System corruption reached 10% 20365 | -4/Armory | Core integrity fell below 50% 20500 | -4/Armory | Entered Research 20500 | -3/Research | Evolved 2 slots: Utility x2 20700 | -3/Research | Revision forces began assault on 0b10 20701 | -3/Research | Met up with Revision 17++ 20816 | -3/Research | Build established: Infiltrator-Golem 21200 | -3/Research | Research terminal network offline 21225 | -3/Research | Found Prototype Device 21225 | -3/Research | Identified Exp. Thermal Defense Suite 21520 | -3/Research | Discovered new exit (range 10) 21530 | -3/Research | Identified exit to Research 21550 | -3/Research | Spotted Striker 21550 | -3/Research | Spotted Striker 21570 | -3/Research | Destroyed Striker 21585 | -3/Research | Assembled infested ambush trap array 21622 | -3/Research | Lost 4 allies 21652 | -3/Research | Build established: Golem 21715 | -3/Research | Spotted Striker 21717 | -3/Research | Entered another Research area 21717 | -2/Research | Evolved 2 slots: Utility x2 21838 | -2/Research | Found Unknown Launcher 21838 | -2/Research | Identified Gamma Bomb Array 22009 | -2/Research | Found Prototype Device 22009 | -2/Research | Identified Exp. Transmission Jammer 22013 | -2/Research | Found Exp. Transmission Jammer 22016 | -2/Research | Found Exp. Transmission Jammer 22060 | -2/Research | Build established: Infiltrator-Golem 22216 | -2/Research | Discovered new exit (range 9) 22260 | -2/Research | Identified exit to Access 22324 | -2/Research | System corruption reached 10% 22410 | -2/Research | Lost 6 parts (1p2n1u2w) 22743 | -2/Research | Build established: Golem 22874 | -2/Research | Destroyed 9 combat bots 23149 | -2/Research | Entered Access 23149 | -1/Access | Evolved 2 slots: Utility x1, Weapon x1 24226 | -1/Access | Found Prototype Device 24226 | -1/Access | Identified Exp. ECM Suite 24320 | -1/Access | System corruption reached 10% 24899 | -1/Access | First assault squad dispatched 25064 | -1/Access | Lost 18 parts (3p5n7u3w) 25094 | -1/Access | Core integrity fell below 50% 25119 | -1/Access | Lost 4 parts (4n) 25121 | -1/Access | System corruption reached 30% 25123 | -1/Access | Core integrity fell below 20% 25148 | -1/Access | Door terminal overloaded 25148 | -1/Access | Discovered new exit (range 6) 25150 | -1/Access | Identified exit to Surface 25150 | *** | Escaped! Last Messages --------------- corruption cleaned. 25130_ System corrupted: Heat flow error (+181). 25130_ Acquired 5 matter. 25130_ Biometal Leg+ destroyed. 25134_ Slug penetrates Door. 25134_ Slug penetrates Wall. 25134_ W-44 Eye sends out distress signal. 25139_ K-01 Serf cleans the Terminal. 25143_ Connecting with Terminal... 25143_ ALERT: Suspicious activity at Terminal A001. Dispatching Investigation squad. 25145_ System corrupted: Component data lost. 25148_ System overload, Sealed Barrier opened. 25148_ Terminal disabled. 25148_ The Access Shell folds into the floor. 25148_ EXIT=FOUND 25149_ ALERT: Unidentified disturbance in Zone 6V, assault force dispatched. 25150_ EXIT=IDENTIFIED: SURFACE 25150_ K-01 Serf collects debris. Map ----- +----------------------------------------------------+ | ?????????????????????????????????????????????????? | | ?????????????????????????????????????????????????? | | ?????????????????????????????????????????????????? | | ?????????????????????????????????????????????????? | | ?????????????????????????????????????????????????? | | ?????????????????????????????????????????????????? | | ?????????????????????????????????????????????????? | | ?????????????????????????????????????????????????? | | ??????????? ?????????????????????????????????????? | | ??????????? ????????????????????????????????????? | | ??????????# ????????????????????????????????????? | | ??????????# ????????????????????????????????????? | | ??????????# ????????????????????????????????????? | | ??????????# ????????????????????????????????????? | | ??????????/ #???????????????????????????????????? | | ??????????# #???????????????????????????????????? | | ??????????# #???????????????????????????????????? | | ??????????# #???????????????????????????????????? | | ??????????# #?????###???????????????????????????? | | ??????????# ####### ##########??????????????????? | | ??????????# """T""" "??????????????????? | | ??????????# """ "" "??????????????????? | | ??????????# g "??????????????????? | | ??????????# kg "??????????????????? | | ??????????# "" "??????????????????? | | ??????????# @" "??????????????????? | | ??????????# "??????????????????? | | #?????????# "??????????????????? | | #?????????# "??????????????????? | | #######???# xp "??????????????????? | | #???# ####### ##########??????????????????? | | #???# #?????###???????????????????????????? | | #???# #?????#??????????#??????????????????? | | " #???# #???????????????????????????????????? | | %=|=#???# #???????????????????????????? ??????? | | |!%=#???# #???????????#????#??????????????????? | | !*%##### #???????????#???????????????????????? | | #???????????????????????????????????? | | " ??????????????????????????#?#?????? | | # ???????????????????????#?????????? | | ########### # ????????????#?????????????#?????? | | ??????????# #? ?????????#??#?????????????????? | | ??????????# #?######?????#??????????????????????? | | ########### #???????????????##???###?#??#???????? | | ## #??????????????????????????#????????? | | ## ##??????????????????????????????????? | | # ########?##############????????????? | | / #?# #?????????#??# | | # #?# #????????????? | | # ##### #?# #???#???##???? | +----------------------------------------------------+ Best States ------------- Heat Dissipation 94 Energy Generation 77 Energy Capacity 1350 Matter Stores 300 Matter Capacity 300 Sight Range 23 Robot Scan Range 16 Terrain Scan Range 24 Terrain Scan Density 10 ECM Strength 3 Jamming Range 22 Cloak Strength 3 Additional Mass Support 20 Armor Coverage 775 Resistance: KI 20 Resistance: TH 15 Resistance: EX 15 Resistance: EM 15 Resistance: I 15 Resistance: S 15 Resistance: P 15 Weapon Shielding 100 Phase Shifting 15 Evasion (%) 70 Targeting Accuracy 8 Core Analysis 8 Recoil Reduction 4 Offensive Hacking 10 Item Schematics ----------------- Imp. EM Pulse Cannon | -7/Factory | Hacked Robot Schematics ------------------ None Fabricated ------------ Nothing Repaired ---------- Hvy. Rocket Launcher | 69% | -8/Materials Flexi-carbon Leg | 35% | -5/Factory Studied --------- EM Pulse Cannon | -7/Factory | Hacked Hvy. Rocket Launcher | -7/Factory | Hacked Plasma Cannon | -7/Factory | Hacked Flexi-carbon Leg | -5/Factory | Hacked Thunder Leg | -4/Factory | Hacked Centrium Leg | -2/Research | Hacked Biometal Leg | -1/Access | Hacked Myomer Leg | -1/Access | Hacked Alien Tech Used ----------------- None Achievements -------------- None Challenges ------------ None Game ------ Seed HelicalDisruptionRigger Manual? 0 Play Time 03:00:10 Cumulative 485.0 hours Start 2026.06.20 @ 16:13:35 End 2026.06.20 @ 20:12:03 Sessions 3 Manual Loads 0 Difficulty Rogue Special Mode None Game No. 285 Rogue 285 Adventurer 0 Explorer 0 Win Type 0 Total 22 Types 11/1/4/2/1/0/1/2/0/0 Lore% 94 Gallery% 83 Achievement% 76 Wizard Run 0 Options --------- Layout 1 ASCII 0 Keyboard 0 Movement Mouse Keybinds 0 Fullscreen 2 Font 32/SmallcapsGlow Map View 50x35 Zoom Use 0% Tactical HUD 1 Map Filters NONE Filters NONE Steam 1 RUN: 47959e84-37c7-4775-873a-c1eed04295cd